bitfinex/quotes_BTCUSD_20260103
["timestamp","ask_amount","ask_price","bid_price","bid_amount"]
[1767475117730,0.022355,90358.0,90355.0,0.01106745]
[1767475117885,0.022355,90358.0,90355.0,0.06640434]
[1767475118081,0.022355,90358.0,90355.0,0.01006845]
[1767475118543,0.01,90355.0,90352.0,0.01106782]
[1767475118750,0.03342208,90358.0,90352.0,0.01106782]
[1767475119116,0.05533641,90357.0,90352.0,0.01106782]
[1767475119512,0.03342208,90358.0,90352.0,0.01106782]
[1767475119755,0.0887579,90358.0,90352.0,0.01106782]
[1767475120072,0.01106733,90356.0,90352.0,0.01106782]
[1767475121218,0.01106721,90357.0,90353.0,0.0110677]
[1767475122170,0.01106733,90356.0,90352.0,0.01106782]
[1767475124653,0.01106745,90355.0,90351.0,0.06640717]
[1767475124894,0.01106745,90355.0,90351.0,0.01106794]
[1767475125685,0.01106745,90355.0,90351.0,0.01077856]
[1767475126345,0.00481338,90356.0,90351.0,0.01077856]
[1767475127331,0.01106721,90357.0,90353.0,0.0110677]
[1767475127666,0.03342208,90358.0,90354.0,0.01106757]
[1767475128411,0.03342208,90358.0,90355.0,0.01106745]
[1767475129181,0.03342208,90358.0,90354.0,0.01106757]
[1767475129667,0.03342208,90358.0,90355.0,0.01106745]
[1767475129889,0.03342208,90358.0,90355.0,0.01077806]
[1767475131410,0.022355,90358.0,90355.0,0.01077806]
[1767475131998,0.03342208,90358.0,90354.0,0.01106757]
[1767475135134,0.01106721,90357.0,90353.0,0.06640583]
[1767475136212,0.03342208,90358.0,90354.0,0.01106757]
[1767475136421,0.021356,90358.0,90355.0,0.06640469]
[1767475142262,0.021356,90358.0,90355.0,0.01106745]
[1767475143516,0.03242308,90358.0,90354.0,0.01106757]
[1767475143733,0.021356,90358.0,90355.0,0.01106745]
[1767475144475,0.03242308,90358.0,90354.0,0.01106757]
[1767475145231,0.021356,90358.0,90355.0,0.01106745]
[1767475145626,0.00564147,90358.0,90355.0,0.01106745]
[1767475145769,0.02212,90359.0,90357.0,0.01106721]
[1767475146803,0.02212,90359.0,90357.0,0.06640276]
[1767475147009,0.02212,90359.0,90357.0,0.01106721]
[1767475147259,0.01804158,90359.0,90357.0,0.01106721]
[1767475147485,0.06681561,90367.0,90361.0,0.01106672]
[1767475147486,0.01148533,90367.0,90361.0,0.01106672]
[1767475147711,0.0110661,90366.0,90361.0,0.01106672]
[1767475147915,0.01106635,90364.0,90359.0,0.01106696]
[1767475148094,0.01,90361.0,90359.0,0.01106696]
[1767475148439,0.0099,90361.0,90358.0,0.01106708]
[1767475148641,0.01106647,90363.0,90358.0,0.01106708]
[1767475148896,0.01106696,90359.0,90354.0,0.05820688]
[1767475149097,0.01106721,90357.0,90353.0,0.0110677]
[1767475149304,0.0099,90353.0,90351.0,0.02212]
[1767475149497,0.05533911,90352.0,90351.0,0.02212]
[1767475150153,0.06640563,90354.0,90351.0,0.02212]
[1767475150529,0.01106757,90354.0,90351.0,0.02212]
[1767475150704,0.0109986,90354.0,90351.0,0.02212]
[1767475151840,0.01106745,90355.0,90351.0,0.03318794]
[1767475152634,0.00999947,90355.0,90352.0,0.01106782]
[1767475152840,0.01106721,90357.0,90353.0,0.0110677]
[1767475153063,0.01106733,90356.0,90352.0,0.01106782]
[1767475154342,0.01106708,90358.0,90353.0,0.0110677]
[1767475154860,0.01106721,90357.0,90354.0,0.00047795]
[1767475156399,0.01106721,90357.0,90354.0,9.5e-07]
[1767475156849,0.01106696,90359.0,90355.0,0.01106745]
[1767475157056,0.01106672,90361.0,90357.0,0.01]
[1767475157818,0.01106672,90361.0,90356.0,0.01106733]
[1767475158039,0.000522,90357.0,90356.0,0.01106733]
[1767475158393,0.01106684,90360.0,90356.0,0.01106733]
[1767475159043,0.01106696,90359.0,90355.0,0.01106745]
[1767475159211,0.01106696,90359.0,90355.0,0.01077806]
[1767475159937,0.01106696,90359.0,90355.0,0.01048869]
[1767475160950,0.06640284,90358.0,90354.0,9.5e-07]
[1767475161173,0.01106757,90354.0,90351.0,0.02212]
[1767475161350,0.010422,90355.0,90351.0,0.03318794]
[1767475161605,0.01106733,90356.0,90351.0,0.03318794]
[1767475161719,0.01106757,90354.0,90351.0,0.03318794]
[1767475162543,0.01106757,90354.0,90351.0,0.021598]
[1767475162945,0.01106745,90355.0,90351.0,0.03266594]
[1767475163574,0.01106733,90356.0,90352.0,0.01106782]
[1767475163889,0.01106745,90355.0,90351.0,0.03266594]
[1767475164383,0.01106733,90356.0,90355.0,0.000999]
[1767475164746,0.01106733,90356.0,90353.0,0.0110677]
[1767475165361,0.01106733,90356.0,90352.0,0.01106782]
[1767475169664,0.01106745,90355.0,90351.0,0.03266594]
[1767475169824,0.01106745,90355.0,90352.0,0.0008]
[1767475170385,0.01106733,90356.0,90352.0,0.01186782]
[1767475170580,0.01106745,90355.0,90352.0,0.0008]
[1767475171344,0.01106745,90355.0,90352.0,0.00051065]
[1767475172184,0.06640523,90355.0,90352.0,0.00051065]
[1767475172661,0.0553385,90353.0,90352.0,0.00051065]
[1767475172864,0.0553385,90353.0,90351.0,0.021598]
[1767475174484,0.0553385,90353.0,90351.0,0.02130868]
[1767475175247,0.0553385,90353.0,90351.0,0.02101938]
[1767475175564,0.0553385,90353.0,90351.0,0.02073008]
[1767475175723,0.01106757,90354.0,90351.0,0.02073008]
[1767475176169,0.0664059,90354.0,90351.0,0.02073008]
[1767475177204,0.05533894,90353.0,90351.0,0.02073008]
[1767475177602,0.01106806,90350.0,90348.0,0.02212]
[1767475177863,0.00938935,90351.0,90348.0,0.03318831]
[1767475178075,0.00938935,90351.0,90350.0,0.000999]
[1767475178253,0.01106782,90352.0,90350.0,0.000999]
[1767475178450,0.01106782,90352.0,90348.0,0.03318831]
[1767475182004,0.01106794,90351.0,90348.0,0.02212]
[1767475182204,0.01106782,90352.0,90348.0,0.03318831]
[1767475182601,0.01106794,90351.0,90348.0,0.02212]
[1767475186230,0.01106843,90347.0,90343.0,0.04867614]
[1767475186548,0.0664084,90350.0,90347.0,0.000999]
[1767475186708,0.0664084,90350.0,90346.0,0.01106855]
[1767475187336,0.01106806,90350.0,90346.0,0.01106855]
[1767475187963,0.01106794,90351.0,90347.0,0.01106843]
[1767475188193,0.05533797,90354.0,90347.0,0.01106843]
[1767475188330,0.00047794,90358.0,90355.0,0.01106745]
[1767475188667,0.01106647,90363.0,90358.0,0.04867614]
[1767475189092,0.01106647,90363.0,90357.0,0.05533567]
[1767475189517,0.021121,90362.0,90357.0,0.05533567]
[1767475189655,0.02051035,90362.0,90359.0,0.01096502]
[1767475189857,0.02051035,90362.0,90359.0,0.01086308]
[1767475193842,0.01106647,90363.0,90359.0,0.01106696]
[1767475194066,0.01106647,90363.0,90359.0,0.01006796]
[1767475194265,0.01106672,90361.0,90358.0,0.01087974]
[1767475195040,0.01106672,90361.0,90356.0,0.06640361]
[1767475195443,0.01106684,90360.0,90356.0,0.06640361]
[1767475196000,0.01106672,90361.0,90357.0,0.01106721]
[1767475197042,0.01106659,90362.0,90357.0,0.01106721]
[1767475197259,0.01106659,90362.0,90358.0,0.01106708]
[1767475198008,0.01106647,90363.0,90359.0,0.01106696]
[1767475198552,0.06639851,90364.0,90359.0,0.01106696]
[1767475198861,0.06639851,90364.0,90360.0,0.01106684]
[1767475199116,0.05574962,90367.0,90364.0,0.000999]
[1767475199292,0.0668156,90367.0,90364.0,0.000999]
[1767475199591,0.0110661,90366.0,90362.0,0.01106659]
[1767475199740,0.00041935,90367.0,90363.0,0.01106647]
[1767475199942,0.06681527,90367.0,90361.0,0.01106672]
[1767475200525,0.01106635,90364.0,90360.0,0.01106684]
[1767475200891,0.01106635,90364.0,90358.0,0.01106708]
[1767475201095,0.01106647,90363.0,90359.0,0.01106696]
[1767475201274,0.01106647,90363.0,90360.0,0.01106684]
[1767475201724,0.0110661,90366.0,90363.0,0.000999]
[1767475201938,0.22129504,90378.0,90368.0,0.01106586]
[1767475201939,0.02684089,90371.0,90368.0,0.01106586]
[1767475202137,0.02684089,90371.0,90365.0,0.05533066]
[1767475202370,0.0157754,90371.0,90368.0,0.06639472]
[1767475202758,0.0157754,90371.0,90368.0,0.01106586]
[1767475203336,0.02684089,90371.0,90366.0,0.0110661]
[1767475203692,0.0821688,90371.0,90366.0,0.0110661]
[1767475204154,0.02684089,90371.0,90367.0,0.01106598]
[1767475204353,0.0157754,90371.0,90368.0,0.01106586]
[1767475204529,0.02584189,90371.0,90367.0,0.01106598]
[1767475205111,0.000999,90367.0,90366.0,0.0110661]
[1767475205337,0.00091136,90367.0,90366.0,0.01079293]
[1767475205549,0.02584189,90371.0,90367.0,0.01106598]
[1767475206148,0.02584189,90371.0,90368.0,0.01106586]
[1767475206317,0.0147764,90371.0,90368.0,0.01106586]
[1767475208260,0.0147764,90371.0,90368.0,0.0663951]
[1767475208465,0.0147764,90371.0,90369.0,0.05532821]
[1767475208466,0.0146894,90371.0,90369.0,0.05532821]
[1767475208692,0.0146894,90371.0,90368.0,0.0663951]
[1767475210765,0.02568592,90371.0,90367.0,0.01106598]
[1767475210971,0.01462043,90371.0,90368.0,0.01106586]
[1767475212491,0.01455145,90371.0,90368.0,0.01106586]
[1767475215308,0.000999,90368.0,90364.0,0.01106635]
[1767475215515,0.02206486,90368.0,90365.0,0.01106623]
[1767475215714,0.01,90368.0,90365.0,0.01106623]
[1767475216323,0.02106586,90368.0,90364.0,0.01106635]
[1767475216545,0.02106586,90368.0,90365.0,0.01106623]
[1767475217271,0.02099688,90368.0,90365.0,0.01006723]
[1767475217719,0.00993102,90368.0,90365.0,0.01006723]
[1767475218198,0.00984337,90368.0,90365.0,0.01006723]
[1767475218632,0.01106561,90370.0,90365.0,0.01006723]
[1767475219066,0.01106574,90369.0,90365.0,0.01006723]
[1767475219987,0.01106586,90368.0,90364.0,0.01106635]
[1767475220195,0.01106574,90369.0,90365.0,0.01106623]
[1767475220619,0.01106586,90368.0,90365.0,0.01106623]
[1767475221660,0.01106574,90369.0,90365.0,0.01106623]
[1767475221865,0.01106586,90368.0,90365.0,0.01106623]
[1767475222074,0.01106574,90369.0,90365.0,0.01106623]
[1767475222283,0.01106586,90368.0,90364.0,0.01106635]
[1767475223028,0.01106574,90369.0,90365.0,0.01106623]
[1767475223457,0.01106574,90369.0,90364.0,0.01106635]
[1767475223658,0.01106574,90369.0,90365.0,0.01106623]
[1767475224472,0.01106561,90370.0,90366.0,0.0110661]
[1767475225034,0.01106561,90370.0,90366.0,0.01077692]
[1767475225463,0.05639294,90370.0,90366.0,0.01077692]
[1767475227448,0.01106574,90369.0,90365.0,0.01106623]
[1767475227851,0.01142449,90369.0,90365.0,0.01106623]
[1767475228508,0.00035875,90369.0,90366.0,0.0110661]
[1767475228998,0.01142449,90369.0,90365.0,0.01106623]
[1767475229993,0.0601679,90369.0,90365.0,0.01106623]
[1767475230177,0.01142449,90369.0,90365.0,0.01106623]
[1767475230379,0.01135551,90369.0,90365.0,0.01106623]
[1767475230581,0.00028977,90369.0,90366.0,0.0110661]
[1767475232621,0.01126785,90369.0,90366.0,0.0110661]
[1767475233857,0.00020211,90369.0,90366.0,0.0110661]
[1767475234200,0.00020211,90369.0,90365.0,0.01106623]
[1767475234520,0.01126785,90369.0,90365.0,0.01106623]
[1767475237862,0.01118017,90369.0,90365.0,0.01106623]
[1767475239431,0.01106586,90368.0,90364.0,0.06639758]
[1767475239640,0.01106586,90368.0,90364.0,0.01106635]
[1767475240249,0.01106586,90368.0,90365.0,0.01106623]
[1767475240514,0.01118017,90369.0,90365.0,0.01106623]
[1767475241634,0.01106586,90368.0,90365.0,0.01106623]
[1767475241773,0.01118017,90369.0,90365.0,0.01106623]
[1767475241981,0.01106586,90368.0,90364.0,0.01106635]
[1767475242172,0.01106586,90368.0,90360.0,0.08852061]
[1767475242173,0.00984337,90364.0,90360.0,0.08852061]
[1767475242424,0.00984337,90364.0,90361.0,0.01106672]
[1767475242625,0.0110661,90366.0,90361.0,0.01106672]
[1767475242830,0.0110661,90366.0,90362.0,0.01106659]
[1767475243618,0.06639591,90367.0,90363.0,0.01106647]
[1767475243818,0.06639591,90367.0,90363.0,0.01077736]
[1767475244227,0.0110661,90366.0,90362.0,0.01106659]
[1767475244405,0.01097842,90366.0,90362.0,0.01106659]
[1767475244623,0.06639591,90367.0,90363.0,0.01106647]
[1767475247647,0.01106598,90367.0,90363.0,0.01106647]
[1767475248057,0.01118017,90369.0,90365.0,0.01106623]
[1767475248245,0.01118017,90369.0,90364.0,0.06639801]
[1767475248246,0.01106586,90368.0,90364.0,0.01106635]
[1767475248444,0.01106598,90367.0,90363.0,0.01106647]
[1767475249096,0.0110661,90366.0,90362.0,0.06639916]
[1767475249303,0.06639554,90368.0,90363.0,0.01106647]
[1767475249456,0.01106598,90367.0,90363.0,0.01106647]
[1767475250465,0.0110661,90366.0,90362.0,0.01106659]
[1767475251856,0.06639554,90368.0,90363.0,0.01106647]
[1767475252232,0.01106598,90367.0,90364.0,0.01106635]
[1767475252661,0.01093747,90367.0,90364.0,0.01106635]
[1767475253803,0.01093747,90367.0,90363.0,0.01106647]
[1767475255226,0.0110661,90366.0,90362.0,0.01106659]
[1767475255899,0.0110661,90366.0,90362.0,0.0107775]
[1767475257483,0.01093747,90367.0,90363.0,0.01106647]
[1767475260218,0.01106586,90368.0,90364.0,0.06639811]
[1767475260415,0.01020295,90369.0,90365.0,0.01106623]
[1767475260867,0.08094449,90371.0,90366.0,0.0110661]
[1767475261096,0.06639414,90370.0,90365.0,0.01106623]
[1767475261715,0.01106586,90368.0,90364.0,0.01106635]
[1767475263602,0.01106598,90367.0,90363.0,0.01106647]
[1767475264734,0.01106598,90367.0,90362.0,0.06610994]
[1767475264939,0.01106623,90365.0,90361.0,0.01106672]
[1767475265139,0.0110661,90366.0,90362.0,0.01106659]
[1767475265825,0.000999,90362.0,90361.0,0.01106672]
[1767475266225,0.06639631,90367.0,90361.0,0.01106672]
[1767475266226,0.06639631,90367.0,90363.0,0.01106647]
[1767475266421,0.0110661,90366.0,90362.0,0.01106659]
[1767475267004,0.0110661,90366.0,90362.0,0.01006759]
[1767475267211,0.06639631,90367.0,90363.0,0.01106647]
[1767475267619,0.01106586,90368.0,90364.0,0.01106635]
[1767475267820,0.01455145,90371.0,90369.0,0.0553287]
[1767475268436,0.02212,90377.0,90374.0,0.01106512]
[1767475268661,0.03318476,90377.0,90372.0,0.01106537]
[1767475268832,0.01106488,90376.0,90372.0,0.01106537]
[1767475269715,0.011065,90375.0,90372.0,0.01106537]
[1767475269917,0.011065,90375.0,90371.0,0.01106549]
[1767475270864,0.03318476,90377.0,90372.0,0.01106537]
[1767475271218,0.03318476,90377.0,90373.0,0.01106525]
[1767475271622,0.01106488,90376.0,90372.0,0.01106537]
[1767475272451,0.01006588,90376.0,90372.0,0.01106537]
[1767475273288,0.03318476,90377.0,90373.0,0.01106525]
[1767475273411,0.04919233,90376.0,90373.0,0.01106525]
[1767475273911,0.03318476,90377.0,90373.0,0.01106525]
[1767475274115,0.033056,90377.0,90373.0,0.01106525]
[1767475274438,0.01106488,90376.0,90372.0,0.01106537]
[1767475276080,0.011065,90375.0,90371.0,0.01106549]
[1767475276328,0.01106512,90374.0,90370.0,0.05532758]
[1767475276461,0.01106512,90374.0,90368.0,0.01106586]
[1767475276462,0.04919233,90374.0,90367.0,0.01238543]
[1767475276637,0.04919233,90374.0,90369.0,0.05532865]
[1767475277069,0.04919233,90374.0,90370.0,0.05532754]
[1767475277498,0.04912333,90374.0,90371.0,0.01106549]
[1767475277698,0.06018845,90374.0,90370.0,0.01106561]
[1767475277934,0.01106512,90374.0,90370.0,0.0591904]
[1767475278655,0.011065,90375.0,90371.0,0.01106549]
[1767475279058,0.011065,90375.0,90371.0,0.05919028]
[1767475279663,0.01106512,90374.0,90371.0,0.04812479]
[1767475279863,0.06639133,90374.0,90371.0,0.03728242]
[1767475282286,0.01106525,90373.0,90369.0,0.05919053]
[1767475283124,0.01106512,90374.0,90370.0,0.01106561]
[1767475283455,0.01106512,90374.0,90370.0,0.0591904]
[1767475285345,0.011065,90375.0,90371.0,0.01106549]
[1767475287018,0.011065,90375.0,90371.0,0.05919028]
[1767475287256,0.01106488,90376.0,90373.0,0.04812479]
[1767475288374,0.08837996,90377.0,90376.0,0.04912379]
[1767475288567,0.08837996,90377.0,90373.0,0.01106525]
[1767475288713,0.01106488,90376.0,90373.0,0.04812479]
[1767475289878,0.0663897,90376.0,90373.0,0.04812479]
[1767475290089,0.01106476,90377.0,90373.0,0.04812479]
[1767475290223,0.01106476,90377.0,90376.0,0.000999]
[1767475290685,0.0663893,90376.0,90373.0,0.04812479]
[1767475292664,0.01006588,90376.0,90373.0,0.04812479]
[1767475293423,0.01006588,90376.0,90373.0,0.05919004]
[1767475293768,0.01106476,90377.0,90373.0,0.05919004]
[1767475294325,0.0553236,90378.0,90373.0,0.05919004]
[1767475294326,0.06638823,90378.0,90374.0,0.01106512]
[1767475294714,0.01106463,90378.0,90374.0,0.01106512]
[1767475296510,0.01106488,90376.0,90373.0,0.05919004]
[1767475296683,0.01106476,90377.0,90373.0,0.05919004]
[1767475299104,0.01106488,90376.0,90373.0,0.04812479]
[1767475301494,0.01106476,90377.0,90373.0,0.05919004]
[1767475302076,0.01106476,90377.0,90373.0,0.05909898]
[1767475304414,0.06638751,90379.0,90374.0,0.01106512]
[1767475304618,0.01106463,90378.0,90374.0,0.01106512]
[1767475306637,0.016356,90382.0,90380.0,0.04802984]
[1767475306762,0.016356,90382.0,90375.0,0.011065]
[1767475306763,0.04867501,90387.0,90384.0,0.01638273]
[1767475306961,0.03106329,90389.0,90384.0,0.04802984]
[1767475307222,0.03106329,90389.0,90388.0,0.04802984]
[1767475307426,0.03106329,90389.0,90388.0,0.04703084]
[1767475307928,0.08637975,90389.0,90388.0,0.03956827]
[1767475308271,0.08538095,90389.0,90386.0,0.04802984]
[1767475308693,0.02799939,90393.0,90390.0,0.04802984]
[1767475308694,0.08331368,90393.0,90390.0,0.04802984]
[1767475308894,0.0110628,90393.0,90389.0,0.05802984]
[1767475309164,0.0019,90410.0,90400.0,0.01106194]
[1767475309165,0.01166659,90404.0,90400.0,0.01106194]
[1767475309370,0.02986594,90434.0,90400.0,0.01106194]
[1767475309371,0.33169661,90445.0,90414.0,0.01106023]
[1767475309575,0.33169661,90445.0,90415.0,0.02212]
[1767475309576,0.01105974,90418.0,90415.0,0.02212]
[1767475309788,0.0110606,90411.0,90405.0,0.01106133]
[1767475309986,0.000999,90414.0,90411.0,0.06636329]
[1767475310113,0.0110595,90420.0,90413.0,0.02661216]
[1767475310114,0.0397456,90419.0,90413.0,0.02661216]
[1767475310373,0.01105998,90416.0,90413.0,0.02661216]
[1767475310714,0.06636034,90416.0,90413.0,0.02561316]
[1767475311263,0.01106035,90413.0,90408.0,0.01106096]
[1767475311465,0.01106072,90410.0,90401.0,0.09953842]
[1767475311640,0.01106133,90405.0,90402.0,0.02212]
[1767475311848,0.01106109,90407.0,90402.0,0.0331817]
[1767475312074,0.01106072,90410.0,90404.0,0.04767601]
[1767475312741,0.01106072,90410.0,90405.0,0.01106133]
[1767475313666,0.01106072,90410.0,90406.0,0.01106121]
[1767475313876,0.01106047,90412.0,90407.0,0.01106109]
[1767475314099,0.01106035,90413.0,90407.0,0.06636618]
[1767475314273,0.01106035,90413.0,90407.0,0.01106109]
[1767475315129,0.01106023,90414.0,90410.0,0.01106072]
[1767475316522,0.01106023,90414.0,90409.0,0.01106084]
[1767475316523,0.01106035,90413.0,90409.0,0.01106084]
[1767475316724,0.01106047,90412.0,90408.0,0.01106096]
[1767475317393,0.05973463,90419.0,90411.0,0.0110606]
[1767475317593,0.01105986,90417.0,90412.0,0.01205947]
[1767475317828,0.01105998,90416.0,90411.0,0.0110606]
[1767475318040,0.01105998,90416.0,90412.0,0.01106047]
[1767475318264,0.01106011,90415.0,90411.0,0.0110606]
[1767475319517,0.01106023,90414.0,90410.0,0.01106072]
[1767475319719,0.01106011,90415.0,90411.0,0.0110606]
[1767475319921,0.01106011,90415.0,90414.0,0.000999]
[1767475320334,0.01106011,90415.0,90411.0,0.0110606]
[1767475321711,0.01106023,90414.0,90410.0,0.01106072]
[1767475322251,0.01106023,90414.0,88195.0,0.00034]
[1767475322252,0.01106096,90408.0,90401.0,0.01106182]
[1767475322425,0.04423141,90423.0,90416.0,0.01105998]
[1767475322663,0.02212,90420.0,90417.0,0.05529928]
[1767475322848,0.02212,90420.0,90418.0,0.01105974]
[1767475323247,0.021121,90420.0,90418.0,0.01105974]
[1767475323395,0.021121,90420.0,90417.0,0.01105986]
[1767475323603,0.011121,90420.0,90417.0,0.01105986]
[1767475323987,0.0221805,90420.0,90413.0,0.05530172]
[1767475324227,0.000999,90417.0,90413.0,0.05530172]
[1767475324402,0.000999,90417.0,90414.0,0.01106023]
[1767475324604,0.01105974,90418.0,90411.0,0.0110606]
[1767475324843,0.01,90414.0,90411.0,0.0110606]
[1767475325083,0.02106023,90414.0,90410.0,0.01106072]
[1767475325286,0.000999,90410.0,90408.0,0.01106096]
[1767475325699,0.000999,90410.0,90408.0,0.06636532]
[1767475325872,0.01106023,90414.0,90410.0,0.01106072]
[1767475326035,0.01106035,90413.0,90408.0,0.01106096]
[1767475326240,0.01106035,90413.0,90390.0,0.28952673]
[1767475326241,0.055303,90411.0,90404.0,0.01106145]
[1767475326691,0.01106096,90408.0,90403.0,0.01106157]
[1767475327030,0.01106084,90409.0,90404.0,0.01106145]
[1767475327307,0.01106072,90410.0,90405.0,0.04514561]
[1767475327512,0.0110606,90411.0,90408.0,0.04514561]
[1767475327894,0.06636409,90411.0,90408.0,0.04414661]
[1767475328504,0.06636409,90411.0,90408.0,0.04393073]
[1767475328710,0.06636336,90412.0,90390.0,0.01106317]
[1767475328711,0.01106145,90404.0,90390.0,0.01106317]
[1767475328967,0.01106243,90396.0,90391.0,0.05631627]
[1767475329266,0.01106243,90396.0,90393.0,0.04514561]
[1767475329437,0.01106231,90397.0,90393.0,0.04514561]
[1767475329625,0.01106231,90397.0,90393.0,0.05620841]
[1767475329820,0.01106219,90398.0,90394.0,0.05610829]
[1767475330052,0.01106194,90400.0,90395.0,0.05620816]
[1767475330229,0.01106194,90400.0,90396.0,0.01106243]
[1767475330432,0.01106206,90399.0,90395.0,0.05620816]
[1767475330832,0.01106194,90400.0,90396.0,0.01106243]
[1767475331011,0.01106206,90399.0,90395.0,0.05620816]
[1767475331217,0.01106194,90400.0,90396.0,0.01106243]
[1767475331624,0.01106182,90401.0,90396.0,0.01106243]
[1767475332153,0.01106206,90399.0,90395.0,0.04514561]
[1767475333018,0.01106206,90399.0,90395.0,0.05620816]
[1767475333638,0.01106206,90399.0,90396.0,0.04514561]
[1767475334579,0.01006306,90399.0,90396.0,0.04514561]
[1767475334793,0.01106219,90398.0,90394.0,0.05610829]
[1767475334995,0.01106231,90397.0,90394.0,0.04514561]
[1767475335404,0.01106219,90398.0,90394.0,0.05620829]
[1767475335726,0.01006306,90399.0,90395.0,0.05620816]
[1767475336267,0.06637214,90400.0,90396.0,0.01106243]
[1767475336503,0.01097412,90400.0,90396.0,0.01106243]
[1767475337026,0.05530805,90403.0,90397.0,0.01106231]
[1767475337249,0.01106182,90401.0,90397.0,0.01106231]
[1767475338855,0.01097399,90401.0,90397.0,0.01106231]
[1767475340198,0.0110617,90402.0,90398.0,0.01106219]
[1767475340823,0.01106182,90401.0,90397.0,0.01106231]
[1767475341544,0.01097398,90401.0,90397.0,0.01106231]
[1767475341747,0.0110617,90402.0,90398.0,0.01106219]
[1767475343023,0.01106182,90401.0,90396.0,0.01106243]
[1767475343211,0.01091117,90398.0,90396.0,0.01106243]
[1767475343561,0.01082335,90398.0,90395.0,0.01106255]
[1767475343767,0.01106194,90400.0,90396.0,0.01106243]
[1767475344575,0.010823,90396.0,90395.0,0.01106255]
[1767475344769,0.01,90396.0,90395.0,0.01106255]
[1767475344935,0.01106194,90400.0,90395.0,0.01106255]
[1767475345146,0.01106206,90399.0,90394.0,0.05620829]
[1767475345391,0.01188568,90394.0,90391.0,0.00010762]
[1767475345564,0.000823,90394.0,90391.0,0.01117066]
[1767475345972,0.01106243,90396.0,90392.0,0.05620853]
[1767475346307,0.01106243,90396.0,90391.0,0.06648545]
[1767475346308,0.01,90392.0,90391.0,0.00010762]
[1767475346513,0.0110639,90384.0,90376.0,0.05621049]
[1767475346668,0.0110639,90384.0,90379.0,0.05532206]
[1767475346669,0.04625287,90383.0,90379.0,0.05532206]
[1767475346875,0.01111938,90384.0,90379.0,0.05621012]
[1767475347092,0.01106378,90385.0,90384.0,0.00033731]
[1767475347271,0.06638242,90386.0,90384.0,0.04548292]
[1767475348333,0.01106366,90386.0,90384.0,0.04548292]
[1767475348696,0.01106366,90386.0,90384.0,0.00033731]
[1767475351687,0.01106366,90386.0,90379.0,0.11153215]
[1767475351688,0.01106463,90378.0,90373.0,0.04528828]
[1767475351830,0.06638988,90376.0,90373.0,5.548e-05]
[1767475352043,0.01106476,90377.0,90373.0,0.05640901]
[1767475352265,0.01106463,90378.0,90375.0,0.04528828]
[1767475352463,0.01106463,90378.0,90374.0,0.01106512]
[1767475352638,0.01106463,90378.0,90373.0,0.01112073]
[1767475352639,0.000378,90375.0,90373.0,0.04534376]
[1767475352841,0.01106463,90378.0,90373.0,0.04534376]
[1767475353305,0.01106476,90377.0,90373.0,0.04534376]
[1767475354244,0.01106476,90377.0,90373.0,0.05640901]
[1767475354827,0.01106463,90378.0,90374.0,0.01106512]
[1767475355306,0.01106476,90377.0,90373.0,0.05640901]
[1767475355503,0.01106463,90378.0,90373.0,0.05640901]
[1767475355905,0.01106463,90378.0,90374.0,0.01106512]
[1767475356850,0.01106451,90379.0,90375.0,0.011065]
[1767475357029,0.01106439,90380.0,90376.0,0.01106488]
[1767475357624,0.01006539,90380.0,90376.0,0.01106488]
[1767475357934,0.01106402,90383.0,90378.0,0.01106463]
[1767475358098,0.0663846,90383.0,90378.0,0.01106463]
[1767475359128,0.01106329,90389.0,90382.0,0.04528828]
[1767475359385,0.03318341,90388.0,90381.0,0.06638522]
[1767475359514,0.01106353,90387.0,90381.0,0.01106427]
[1767475360247,0.01106366,90386.0,90381.0,0.01106427]
[1767475360819,0.06638058,90388.0,90384.0,0.0110639]
[1767475361013,0.02212,90386.0,90384.0,0.0110639]
[1767475361216,0.02212,90386.0,90383.0,0.01106402]
[1767475361640,0.02212,90386.0,90383.0,0.06638372]
[1767475362025,0.02212,90386.0,90384.0,0.055319]
[1767475362417,0.02203214,90386.0,90383.0,0.06638372]
[1767475363571,0.02212,90387.0,90385.0,0.01106378]
[1767475363751,0.02212,90387.0,90384.0,0.0110639]
[1767475364938,0.03318353,90387.0,90383.0,0.01106402]
[1767475365937,0.02212,90387.0,90384.0,0.0110639]
[1767475366581,0.02203214,90387.0,90384.0,0.0110639]
[1767475367707,0.02203214,90387.0,90385.0,0.05531891]
[1767475368293,0.02203214,90387.0,90384.0,0.0110639]
[1767475368619,0.02203214,90387.0,90384.0,0.06638302]
[1767475369114,0.02203214,90387.0,90385.0,0.05531851]
[1767475370263,0.02203214,90387.0,90384.0,0.06638288]
[1767475373032,0.02203214,90387.0,90384.0,0.11511688]
[1767475375294,0.02203214,90387.0,90384.0,0.0597979]
[1767475376125,0.02203214,90387.0,90384.0,0.0587989]
[1767475381013,0.01106341,90388.0,90385.0,0.01106378]
[1767475381217,0.03318341,90388.0,90385.0,0.01106378]
[1767475381442,0.02212,90388.0,90385.0,0.01106378]
[1767475381897,0.0442,90403.0,90397.0,0.05920235]
[1767475381898,0.01106157,90403.0,90397.0,0.05920235]
[1767475382108,0.05530851,90402.0,90397.0,0.03814004]
[1767475382364,0.05530851,90402.0,90398.0,0.04814004]
[1767475382365,0.01106182,90401.0,90398.0,0.04814004]
[1767475382768,0.06637002,90403.0,90395.0,0.01106255]
[1767475382769,0.01106084,90409.0,90405.0,0.04814004]
[1767475382968,0.02212,90409.0,90405.0,0.01106133]
[1767475383169,0.01106096,90408.0,90404.0,0.01106145]
[1767475383695,0.01106109,90407.0,90403.0,0.01106157]
[1767475384302,0.01096084,90409.0,90404.0,0.01106145]
[1767475384508,0.01106072,90410.0,90406.0,0.01106121]
[1767475384715,0.01106072,90410.0,90405.0,0.01106133]
[1767475384716,0.01106084,90409.0,90405.0,0.01106133]
[1767475385352,0.01106109,90407.0,90404.0,0.01106145]
[1767475385757,0.06636546,90409.0,90405.0,0.01106133]
[1767475387028,0.01106084,90409.0,90405.0,0.01106133]
[1767475387231,4.362e-05,90410.0,90407.0,0.01106109]
[1767475387434,0.0552982,90419.0,90412.0,0.01106047]
[1767475387849,0.05544629,90421.0,90412.0,0.01106047]
[1767475388059,0.01105962,90419.0,90415.0,0.01106011]
[1767475388274,0.01120877,90421.0,90415.0,0.00929403]
[1767475388479,0.0001494,90421.0,90418.0,0.01105974]
[1767475388817,0.01120877,90421.0,90417.0,0.01105986]
[1767475389228,0.0001494,90421.0,90417.0,0.01105986]
[1767475389809,0.0001494,90421.0,90418.0,0.01105974]
[1767475390565,0.01120877,90421.0,90416.0,0.01105998]
[1767475390949,0.01120877,90421.0,90417.0,0.01105986]
[1767475391963,0.01867838,90426.0,90423.0,0.01105913]
[1767475392168,0.01867838,90426.0,90423.0,0.01101361]
[1767475392365,0.01867838,90426.0,90423.0,0.01105913]
[1767475392569,0.01867838,90426.0,90424.0,0.05529505]
[1767475393215,0.01767938,90426.0,90424.0,0.05529505]
[1767475394226,1e-08,90426.0,90424.0,0.05529505]
[1767475394547,4e-05,90432.0,90427.0,0.05529321]
[1767475395053,1e-08,90428.0,90427.0,0.05529321]